[Event "74th ARM-ch Women 2019"]
[Site "Yerevan"]
[Date "2019.01.18"]
[Round "7"]
[White "Ghukasyan, Siranush"]
[Black "Gaboyan, Susanna"]
[Result "0-1"]
[ECO "B30"]
[WhiteElo "2226"]
[BlackElo "2111"]
[Annotator "NA"]
[PlyCount "134"]
[EventDate "2019.01.12"]
[EventType "tourn"]
[EventCountry "ARM"]
[SourceTitle "playchess.com"]
[Source "ChessBase"]
[SourceQuality "1"]
[TimeControl "40/5400+30:1800+30"]

1. e4 {[%emt 0:00:00]} c5 {[%emt 0:00:00]} 2. Nf3 {[%emt 0:00:00]} Nc6 {[%emt 0:00:00]} 3. Bb5 {[%emt 0:00:04]} Qc7 {[%emt 0:00:07]} 4. O-O {[%emt 0:00:24]} e6 {[%emt 0:00:06]} 5. c3 {[%emt 0:01:47] B30: Sicilian: 2...Nc6 3 Bb5, lines without ...g6} a6 {[%emt 0:02:09]} (5... Nge7 6. Re1 a6 7. Ba4 b5 8. Bc2 Bb7 9. a4 b4 10. d4 Ng6 11. h4 cxd4 12. cxd4 {1-0 (95) Kosteniuk,A (2542)-Socko,M (2485) Khanty-Mansiysk 2017}) 6. Ba4 {[%emt 0:00:52]} Nf6 {[%emt 0:02:26]} 7. Re1 {[%emt 0:05:17]} b5 {[%emt 0:05:39]} 8. Bc2 {[%emt 0:00:51]} e5 {[%emt 0:05:05]} 9. d4 {[%emt 0:03:32]} d6 {[%emt 0:02:51]} 10. a4 {[%emt 0:02:18]} Rb8 {[%emt 0:00:25]} 11. axb5 {[%emt 0:00:42]} axb5 {[%emt 0:00:06]} 12. d5 {[%emt 0:01:33]} Ne7 $146 {[%emt 0:00:28]} ({Predecessor:} 12... Nd8 13. Na3 Bd7 14. Bg5 Be7 15. c4 b4 16. Nb5 Bxb5 17. cxb5 {1-0 (47) Ciocaltea,V-Puc,S Ploiesti 1957}) 13. Nbd2 {[%emt 0:03:40]} g6 {[%emt 0:00:17]} 14. Nf1 {[%emt 0:01:51]} Bg7 {[%emt 0:00:24]} 15. Nxe5 {[%emt 0:13:19]} dxe5 {[%emt 0:01:23]} 16. d6 {[%emt 0:00:05]} Qd7 {[%emt 0:00:23]} 17. dxe7 {[%emt 0:00:22]} Qxe7 {[%emt 0:00:14]} 18. Ne3 {[%emt 0:00:20]} O-O {[%emt 0:00:42]} 19. Qe2 {[%emt 0:03:38]} Be6 {[%emt 0:08:47]} 20. b3 {[%emt 0:05:07]} Qb7 {[%emt 0:08:03]} 21. f3 {[%emt 0:08:06]} Ra8 {[%emt 0:20:29]} 22. Bb2 {[%emt 0:01:32]} c4 {[%emt 0:00:59]} 23. b4 {[%emt 0:11:37]} Nh5 {[%emt 0:02:23]} 24. Rxa8 {[%emt 0:04:35]} Qxa8 {[%emt 0:00:43]} 25. Ra1 {[%emt 0:07:22]} Nf4 $15 {[%emt 0:03:01]} 26. Qf2 {[%emt 0:05:23]} Qd8 {[%emt 0:01:12]} 27. Rd1 {[%emt 0:01:25]} Qg5 {[%emt 0:06:30]} 28. Kh1 {[%emt 0:04:30]} Ra8 {[%emt 0:00:19]} 29. Bc1 {[%emt 0:03:29]} Ra2 {[%emt 0:00:31]} 30. Qf1 {[%emt 0:05:30]} Bh6 {[%emt 0:10:19]} 31. Bb1 {[%emt 0:04:23]} Ra1 {[%emt 0:01:18]} 32. Bb2 {[%emt 0:00:38]} Rxb1 {[%emt 0:04:21]} 33. Rxb1 {[%emt 0:00:04]} Nd3 {[%emt 0:00:05]} 34. Nd1 {[%emt 0:01:20]} Qd2 {[%emt 0:00:10]} 35. Ba1 {[%emt 0:00:48]} Qa2 {[%emt 0:00:45]} 36. Nb2 {[%emt 0:00:26]} Nf2+ {[%emt 0:01:26]} 37. Kg1 {[%emt 0:01:00]} Be3 {[%emt 0:00:02]} 38. Re1 {[%emt 0:00:19]} Bb6 {[%emt 0:01:52]} 39. Re2 {[%emt 0:00:44]} Nd1+ {[%emt 0:02:09]} 40. Kh1 {[%emt 0:00:00]} Nxc3 {[%emt 0:00:00]} 41. Rc2 {[%emt 0:03:45]} Bd4 {[%emt 0:12:44]} 42. Qc1 {[%emt 0:05:12]} Nb1 {[%emt 0:08:52]} 43. Nxc4 {[%emt 0:00:58]} Qxa1 {[%emt 0:00:07]} 44. Nd6 {[%emt 0:00:13]} Na3 {[%emt 0:00:31]} 45. Qxa1 {[%emt 0:00:44]} Bxa1 {[%emt 0:00:05]} 46. Rc7 {[%emt 0:00:30]} Bd4 {[%emt 0:01:43]} 47. Rb7 {[%emt 0:00:32]} Bc4 {[%emt 0:00:51]} 48. Rb8+ {[%emt 0:00:59]} Kg7 {[%emt 0:00:05]} 49. Ne8+ {[%emt 0:00:41]} Kh6 {[%emt 0:00:05]} 50. h4 {[%emt 0:01:03]} Bf2 {[%emt 0:00:56]} 51. Nf6 {[%emt 0:02:16]} Bxh4 {[%emt 0:00:20]} 52. Ng4+ {[%emt 0:00:05]} Kg7 {[%emt 0:00:05]} 53. Nxe5 {[%emt 0:01:04]} Be6 {[%emt 0:07:57]} 54. Nc6 {[%emt 0:00:28]} Be1 {[%emt 0:00:31]} 55. Nd4 {[%emt 0:00:43]} Bc4 {[%emt 0:00:28]} 56. Nc6 {[%emt 0:00:37]} Nc2 {[%emt 0:01:04]} 57. Na7 {[%emt 0:00:12]} Nd4 {[%emt 0:00:10]} 58. Rd8 {[%emt 0:00:28]} Bc3 {[%emt 0:00:35]} 59. Kh2 {[%emt 0:01:17]} Ne6 {[%emt 0:00:57]} 60. Rd1 {[%emt 0:00:58]} Bxb4 {[%emt 0:00:14]} 61. Nc6 {[%emt 0:00:29]} Bc3 {[%emt 0:01:06]} 62. Rc1 {[%emt 0:00:29]} Bd2 {[%emt 0:00:06]} 63. Rc2 {[%emt 0:00:06]} Bf4+ {[%emt 0:00:30]} 64. g3 {[%emt 0:00:06]} Bc7 {[%emt 0:00:08]} 65. Kg2 {[%emt 0:00:35]} Bb6 {[%emt 0:00:08]} 66. Ne5 {[%emt 0:00:23]} Bb3 {[%emt 0:01:09]} 67. Rb2 {[%emt 0:00:06]} Ba4 {[%emt 0:00:25]} 0-1

[Event "74th ARM-ch Women 2019"]
[Site "Yerevan"]
[Date "2019.01.18"]
[Round "7"]
[White "Avetisyan, Mariam"]
[Black "Hakobyan, Astghik"]
[Result "1/2-1/2"]
[ECO "E18"]
[WhiteElo "2106"]
[BlackElo "1776"]
[Annotator "NA"]
[PlyCount "86"]
[EventDate "2019.01.12"]
[EventType "tourn"]
[EventCountry "ARM"]
[SourceTitle "playchess.com"]
[Source "ChessBase"]
[SourceQuality "1"]
[TimeControl "40/5400+30:1800+30"]

1. d4 {[%emt 0:00:00]} Nf6 {[%emt 0:00:00]} 2. Nf3 {[%emt 0:00:00]} e6 {[%emt 0:00:00]} 3. g3 {[%emt 0:00:00]} b6 {[%emt 0:00:00]} 4. Bg2 {[%emt 0:00:02]} Bb7 {[%emt 0:00:00]} 5. O-O {[%emt 0:00:06]} Be7 {[%emt 0:00:00]} 6. c4 {[%emt 0:00:03]} O-O {[%emt 0:00:02]} 7. Nc3 {[%emt 0:00:07]} Ne4 {[%emt 0:00:09]} 8. Bd2 {[%emt 0:00:05]} f5 {[%emt 0:00:07]} 9. Ne5 {[%emt 0:00:05]} Nxc3 {[%emt 0:03:02]} 10. Bxc3 {[%emt 0:00:20]} Bxg2 {[%emt 0:00:07]} 11. Kxg2 {[%emt 0:00:05]} d6 {[%emt 0:01:03]} 12. Nd3 {[%emt 0:00:13]} Bf6 {[%emt 0:01:02]} 13. Nf4 {[%emt 0:01:02]} Qe7 {[%emt 0:03:20]} 14. d5 {[%emt 0:17:57]} Bxc3 {[%emt 0:04:47]} 15. bxc3 {[%emt 0:01:01]} e5 {[%emt 0:01:59]} 16. Ne6 {[%emt 0:00:08]} Rf6 {[%emt 0:00:47]} 17. Qa4 {[%emt 0:10:19]} a5 {[%emt 0:06:35]} 18. f4 {[%emt 0:29:43]} exf4 {[%emt 0:04:28]} 19. Rxf4 {[%emt 0:04:41]} Na6 {[%emt 0:05:36]} 20. Qc6 {[%emt 0:02:18]} Re8 {[%emt 0:00:45]} 21. e4 {[%emt 0:03:14]} Nb8 {[%emt 0:23:48]} 22. Qa4 {[%emt 0:08:57]} fxe4 {[%emt 0:04:28]} 23. Rxe4 {[%emt 0:05:19]} Qd7 {[%emt 0:00:57]} 24. Qc2 {[%emt 0:02:27]} Qc8 {[%emt 0:08:38]} 25. Rae1 {[%emt 0:03:47]} Nd7 {[%emt 0:02:05]} 26. Rf4 {[%emt 0:06:29]} Rxf4 {[%emt 0:04:45]} 27. gxf4 {[%emt 0:00:03]} Nf6 {[%emt 0:04:24]} 28. Kh1 {[%emt 0:00:11]} Re7 {[%emt 0:02:46]} 29. Qg2 {[%emt 0:03:08]} Qd7 {[%emt 0:07:05]} 30. Rg1 {[%emt 0:01:09]} Rf7 {[%emt 0:01:24]} 31. f5 {[%emt 0:00:33]} Qe7 {[%emt 0:00:57]} 32. Qf3 {[%emt 0:00:54]} Nd7 {[%emt 0:02:36]} 33. Qh5 {[%emt 0:00:42]} Nf6 {[%emt 0:01:30]} 34. Qh3 {[%emt 0:00:38]} Ne4 {[%emt 0:01:29]} 35. Qf3 {[%emt 0:00:51]} Qh4 {[%emt 0:02:40]} 36. Nd4 {[%emt 0:00:24]} Ng5 {[%emt 0:01:45]} 37. Qe3 {[%emt 0:00:48]} Qe4+ {[%emt 0:01:09]} 38. Qxe4 {[%emt 0:00:03]} Nxe4 {[%emt 0:00:02]} 39. Re1 {[%emt 0:00:47]} Nxc3 {[%emt 0:01:19]} 40. Re8+ {[%emt 0:00:00]} Rf8 {[%emt 0:00:00]} 41. Re7 {[%emt 0:03:44]} Rf7 {[%emt 0:04:33]} 42. Re8+ {[%emt 0:00:51]} Rf8 {[%emt 0:00:04]} 43. Re7 {[%emt 0:00:27]} Rf7 {[%emt 0:00:44]} 1/2-1/2

[Event "74th ARM-ch Women 2019"]
[Site "Yerevan"]
[Date "2019.01.18"]
[Round "7"]
[White "Grigoryan, Arpine"]
[Black "Mkrtchyan, Mariam"]
[Result "0-1"]
[ECO "B15"]
[WhiteElo "1962"]
[BlackElo "2098"]
[Annotator "NA"]
[PlyCount "194"]
[EventDate "2019.01.12"]
[EventType "tourn"]
[EventCountry "ARM"]
[SourceTitle "playchess.com"]
[Source "ChessBase"]
[SourceQuality "1"]
[TimeControl "40/5400+30:1800+30"]

1. e4 {[%emt 0:00:00]} c6 {[%emt 0:00:00]} 2. d4 {[%emt 0:00:05]} d5 {[%emt 0:00:00]} 3. Nc3 {[%emt 0:00:06]} dxe4 {[%emt 0:00:00]} 4. Nxe4 {[%emt 0:00:16]} Nf6 {[%emt 0:00:00]} 5. Nxf6+ {[%emt 0:00:07]} exf6 {[%emt 0:00:02]} 6. c3 {[%emt 0:00:19]} Bd6 {[%emt 0:00:14]} 7. Bd3 {[%emt 0:00:16]} O-O {[%emt 0:00:25]} 8. Qc2 {[%emt 0:00:24]} h6 {[%emt 0:00:23]} 9. Ne2 {[%emt 0:00:22]} Re8 {[%emt 0:00:13]} 10. O-O {[%emt 0:01:12]} Qc7 {[%emt 0:00:04]} 11. Ng3 {[%emt 0:04:05]} Nd7 {[%emt 0:04:25]} 12. Be3 {[%emt 0:11:51]} Nf8 {[%emt 0:04:38]} 13. Rae1 {[%emt 0:11:04]} Bg4 {[%emt 0:08:07]} 14. Bf5 {[%emt 0:13:08]} h5 {[%emt 0:11:35]} 15. Bxg4 {[%emt 0:24:02]} hxg4 {[%emt 0:00:20]} 16. Qf5 {[%emt 0:00:17]} Qc8 {[%emt 0:04:12]} 17. Qxc8 {[%emt 0:00:10]} Raxc8 {[%emt 0:00:06]} 18. Nf5 {[%emt 0:00:15]} Bb8 {[%emt 0:04:36]} 19. Bc1 {[%emt 0:01:47]} Ng6 {[%emt 0:06:58]} 20. g3 {[%emt 0:08:36]} Re6 {[%emt 0:11:08]} 21. Re3 {[%emt 0:00:16]} Rce8 {[%emt 0:05:54]} 22. Rfe1 {[%emt 0:00:13]} Kh7 {[%emt 0:05:04]} 23. b3 {[%emt 0:02:15]} Nf8 {[%emt 0:03:25]} 24. Ba3 {[%emt 0:00:30]} g6 {[%emt 0:02:53]} 25. Ne7 {[%emt 0:01:25]} Rd8 {[%emt 0:07:34]} 26. d5 {[%emt 0:05:05]} cxd5 {[%emt 0:03:05]} 27. Nxd5 {[%emt 0:00:06]} Rxd5 {[%emt 0:01:00]} 28. Bxf8 {[%emt 0:00:05]} Rxe3 {[%emt 0:04:17]} 29. Rxe3 {[%emt 0:00:35]} Be5 {[%emt 0:00:13]} 30. a4 {[%emt 0:03:14]} Rd2 {[%emt 0:02:06]} 31. Bb4 {[%emt 0:04:58]} Rb2 {[%emt 0:04:02]} 32. Rd3 {[%emt 0:00:45]} Rxb3 {[%emt 0:00:09]} 33. Rd7 {[%emt 0:00:05]} Kg8 {[%emt 0:01:03]} 34. a5 {[%emt 0:04:13]} a6 {[%emt 0:02:49]} 35. Rd3 {[%emt 0:00:44]} Kg7 {[%emt 0:00:32]} 36. Kf1 {[%emt 0:02:19]} g5 {[%emt 0:01:41]} 37. Kg2 {[%emt 0:00:49]} Kg6 {[%emt 0:00:31]} 38. h3 {[%emt 0:00:28]} gxh3+ {[%emt 0:00:43]} 39. Kxh3 {[%emt 0:00:03]} Kf5 {[%emt 0:02:00]} 40. Rd7 {[%emt 0:00:00]} Kg6 {[%emt 0:00:00]} 41. Rd3 {[%emt 0:03:36]} f5 {[%emt 0:08:02]} 42. Rd7 {[%emt 0:08:33]} g4+ {[%emt 0:08:35]} 43. Kg2 {[%emt 0:00:11]} Bxc3 {[%emt 0:00:27]} 44. Bxc3 {[%emt 0:00:20]} Rxc3 {[%emt 0:00:03]} 45. Rxb7 {[%emt 0:00:04]} Rc6 {[%emt 0:00:15]} 46. Rb6 {[%emt 0:03:20]} Re6 {[%emt 0:00:44]} 47. f4 {[%emt 0:00:47]} gxf3+ {[%emt 0:04:20]} 48. Kxf3 {[%emt 0:00:10]} Kg5 {[%emt 0:00:10]} 49. Kf2 {[%emt 0:05:38]} f4 {[%emt 0:05:01]} 50. Kf3 {[%emt 0:02:45]} fxg3 {[%emt 0:01:11]} 51. Kxg3 {[%emt 0:00:25]} Kf5 {[%emt 0:00:25]} 52. Kf3 {[%emt 0:01:28]} Ke5 {[%emt 0:00:30]} 53. Rb7 {[%emt 0:00:44]} f6 {[%emt 0:02:34]} 54. Rb1 {[%emt 0:00:55]} Rc6 {[%emt 0:01:05]} 55. Re1+ {[%emt 0:02:46]} Kf5 {[%emt 0:00:42]} 56. Rh1 {[%emt 0:01:03]} Rc3+ {[%emt 0:00:21]} 57. Ke2 {[%emt 0:00:05]} Kg6 {[%emt 0:01:26]} 58. Rg1+ {[%emt 0:00:56]} Kf7 {[%emt 0:00:19]} 59. Rh1 {[%emt 0:00:17]} Rc5 {[%emt 0:00:08]} 60. Ra1 {[%emt 0:00:27]} Rd5 {[%emt 0:00:25]} 61. Ke3 {[%emt 0:01:13]} Ke6 {[%emt 0:00:27]} 62. Ke4 {[%emt 0:01:57]} Rb5 {[%emt 0:01:55]} 63. Ra4 {[%emt 0:01:02]} Re5+ {[%emt 0:01:24]} 64. Kf4 {[%emt 0:00:40]} Kd6 {[%emt 0:00:31]} 65. Ra1 {[%emt 0:02:23]} Rd5 {[%emt 0:01:50]} 66. Ke4 {[%emt 0:01:34]} f5+ {[%emt 0:00:28]} 67. Kf4 {[%emt 0:00:17]} Kc6 {[%emt 0:00:34]} 68. Rh1 {[%emt 0:00:54]} Kb5 {[%emt 0:01:08]} 69. Ra1 {[%emt 0:00:06]} Kb4 {[%emt 0:01:07]} 70. Ra2 {[%emt 0:00:31]} Kb3 {[%emt 0:01:10]} 71. Ra1 {[%emt 0:00:09]} Kb2 {[%emt 0:00:34]} 72. Ra4 {[%emt 0:00:07]} Rb5 {[%emt 0:00:28]} 73. Kg5 {[%emt 0:01:32]} Kb3 {[%emt 0:00:16]} 74. Ra1 {[%emt 0:00:05]} Kb4 {[%emt 0:00:07]} 75. Kf4 {[%emt 0:00:04]} Rxa5 {[%emt 0:00:52]} 76. Rb1+ {[%emt 0:00:05]} Kc4 {[%emt 0:01:12]} 77. Rb6 {[%emt 0:00:15]} Kc3 {[%emt 0:00:32]} 78. Kg5 {[%emt 0:00:46]} Kd4 {[%emt 0:00:30]} 79. Kf4 {[%emt 0:00:04]} Ra1 {[%emt 0:00:30]} 80. Kxf5 {[%emt 0:00:11]} a5 {[%emt 0:00:17]} 81. Rd6+ {[%emt 0:01:35]} Kc5 {[%emt 0:00:05]} 82. Ra6 {[%emt 0:00:09]} Kb5 {[%emt 0:00:03]} 83. Ra8 {[%emt 0:00:04]} Re1 {[%emt 0:00:03]} 84. Rb8+ {[%emt 0:00:35]} Ka4 {[%emt 0:00:06]} 85. Kf4 {[%emt 0:00:09]} Ka3 {[%emt 0:00:07]} 86. Kf3 {[%emt 0:00:14]} a4 {[%emt 0:00:09]} 87. Kf2 {[%emt 0:00:23]} Re7 {[%emt 0:00:05]} 88. Kf3 {[%emt 0:01:11]} Ka2 {[%emt 0:00:26]} 89. Kf2 {[%emt 0:00:57]} a3 {[%emt 0:00:53]} 90. Rb6 {[%emt 0:00:06]} Ka1 {[%emt 0:00:36]} 91. Rb3 {[%emt 0:00:23]} a2 {[%emt 0:01:42]} 92. Rb8 {[%emt 0:00:06]} Rc7 {[%emt 0:00:30]} 93. Ke2 {[%emt 0:00:12]} Rc1 {[%emt 0:00:02]} 94. Kd2 {[%emt 0:00:27]} Rb1 {[%emt 0:00:03]} 95. Rh8 {[%emt 0:00:27]} Kb2 {[%emt 0:00:04]} 96. Rb8+ {[%emt 0:00:04]} Ka3 {[%emt 0:00:04]} 97. Ra8+ {[%emt 0:02:49]} Kb3 {[%emt 0:00:06]} 0-1

[Event "74th ARM-ch Women 2019"]
[Site "Yerevan"]
[Date "2019.01.19"]
[Round "8"]
[White "Gaboyan, Susanna"]
[Black "Avetisyan, Mariam"]
[Result "1/2-1/2"]
[ECO "A05"]
[WhiteElo "2111"]
[BlackElo "2106"]
[Annotator "NA RC"]
[PlyCount "124"]
[EventDate "2019.01.12"]
[EventType "tourn"]
[EventCountry "ARM"]
[SourceTitle "playchess.com"]
[Source "ChessBase"]
[SourceQuality "1"]
[TimeControl "40/5400+30:1800+30"]

1. Nf3 {[%emt 0:00:43]} Nf6 {[%emt 0:00:00]} 2. g3 {[%emt 0:00:06]} e6 {[%emt 0:00:55]} 3. Bg2 {[%emt 0:00:06]} Be7 {[%emt 0:00:18]} 4. O-O {[%emt 0:00:38]} d5 {[%emt 0:00:29]} 5. d4 {[%emt 0:00:19]} O-O {[%emt 0:00:23]} 6. c4 {[%emt 0:00:46]} dxc4 {[%emt 0:00:25]} 7. Qc2 {[%emt 0:04:09]} a6 {[%emt 0:00:17]} 8. Qxc4 {[%emt 0:02:24]} b5 {[%emt 0:00:08]} 9. Qc2 {[%emt 0:01:35]} Bb7 {[%emt 0:00:12]} 10. Nc3 {[%emt 0:03:16]} Nbd7 {[%emt 0:09:17]} 11. Bf4 {[%emt 0:14:34]} c5 {[%emt 0:07:57]} 12. Rad1 {[%emt 0:06:39]} b4 {[%emt 0:09:37]} 13. Na4 {[%emt 0:01:16]} Be4 {[%emt 0:01:14]} 14. Qc1 {[%emt 0:06:35]} cxd4 {[%emt 0:09:48]} 15. Rxd4 {[%emt 0:01:09]} Qa5 {[%emt 0:02:02]} 16. b3 {[%emt 0:04:09]} Rac8 {[%emt 0:04:37]} 17. Rc4 {[%emt 0:01:36]} Rxc4 {[%emt 0:03:01]} 18. Qxc4 {[%emt 0:00:04]} Bd5 {[%emt 0:03:34]} 19. Qc2 {[%emt 0:03:22]} Be4 {[%emt 0:02:58]} 20. Qc4 {[%emt 0:01:50]} Bd5 {[%emt 0:01:58]} 21. Qc1 {[%emt 0:00:04]} Nc5 {[%emt 0:09:02]} 22. Nxc5 {[%emt 0:00:36]} Bxc5 {[%emt 0:00:07]} 23. Qb2 {[%emt 0:01:15]} Ne4 {[%emt 0:06:52]} 24. Ne5 {[%emt 0:05:21]} Nc3 {[%emt 0:03:34]} 25. Bxd5 {[%emt 0:02:23]} exd5 {[%emt 0:02:17]} 26. Rc1 {[%emt 0:07:31]} Re8 {[%emt 0:05:59]} 27. Rxc3 {[%emt 0:06:21]} bxc3 {[%emt 0:00:28]} 28. Qc2 {[%emt 0:00:03]} Bd4 {[%emt 0:05:16]} 29. Nd3 {[%emt 0:01:33]} Qb6 {[%emt 0:00:43]} 30. Bc1 {[%emt 0:03:23]} Qg6 {[%emt 0:01:57]} 31. Qd1 {[%emt 0:07:21]} Qe4 {[%emt 0:02:02]} 32. e3 {[%emt 0:00:08]} Bb6 {[%emt 0:01:36]} 33. Qe2 {[%emt 0:03:18]} d4 {[%emt 0:01:52]} 34. f3 {[%emt 0:00:09]} Qe7 {[%emt 0:00:14]} 35. e4 {[%emt 0:00:07]} a5 {[%emt 0:01:06]} 36. Kg2 {[%emt 0:01:02]} Bc7 {[%emt 0:00:45]} 37. Qf2 {[%emt 0:02:04]} Rd8 {[%emt 0:00:08]} 38. g4 {[%emt 0:01:41]} Qe6 {[%emt 0:00:58]} 39. h4 {[%emt 0:00:40]} Qa6 {[%emt 0:00:40]} 40. Qc2 {[%emt 0:00:00]} Bd6 {[%emt 0:00:00]} 41. h5 {[%emt 0:00:54]} Rb8 {[%emt 0:05:05]} 42. h6 {[%emt 0:03:07]} a4 {[%emt 0:12:47]} 43. hxg7 {[%emt 0:01:15]} axb3 {[%emt 0:00:07]} 44. axb3 {[%emt 0:00:03]} Qb5 {[%emt 0:00:25]} 45. Qe2 {[%emt 0:03:04]} Be5 {[%emt 0:09:27]} 46. f4 {[%emt 0:04:30]} Bxg7 {[%emt 0:00:04]} 47. e5 {[%emt 0:00:09]} Qxb3 {[%emt 0:02:17]} 48. f5 {[%emt 0:00:13]} Re8 {[%emt 0:05:17]} 49. Qe4 {[%emt 0:10:25]} Qa4 {[%emt 0:01:42]} 50. Kg3 {[%emt 0:01:23]} Qd1 {[%emt 0:01:13]} 51. Bf4 {[%emt 0:01:03]} Qg1+ {[%emt 0:00:26]} 52. Kh3 {[%emt 0:00:32]} Qf1+ {[%emt 0:00:41]} 53. Kg3 {[%emt 0:00:50]} Qg1+ {[%emt 0:01:11]} 54. Kh3 {[%emt 0:00:26]} Qf1+ {[%emt 0:00:45]} 55. Kg3 {[%emt 0:00:32]} c2 {[%emt 0:00:00]} 56. Qxd4 {[%emt 0:01:40]} Qd1 {[%emt 0:01:03]} 57. Qd7 {[%emt 0:02:18]} Ra8 {[%emt 0:00:33]} 58. e6 {[%emt 0:01:18]} fxe6 {[%emt 0:00:07]} 59. fxe6 {[%emt 0:01:19]} Qg1+ {[%emt 0:00:08]} 60. Kh3 {[%emt 0:00:24]} Qh1+ {[%emt 0:00:04]} 61. Kg3 {[%emt 0:00:06]} Qg1+ {[%emt 0:00:05]} 62. Kh3 {[%emt 0:00:04]} Qd4 1/2-1/2

[Event "74th ARM-ch Women 2019"]
[Site "Yerevan"]
[Date "2019.01.20"]
[Round "9"]
[White "Gevorgyan, Maria"]
[Black "Mkrtchyan, Anahit D."]
[Result "1-0"]
[ECO "B13"]
[WhiteElo "2228"]
[BlackElo "1829"]
[Annotator "ChessBase"]
[PlyCount "167"]
[EventDate "2019.01.12"]
[EventType "tourn"]
[EventCountry "ARM"]
[SourceTitle "playchess.com"]
[Source "ChessBase"]
[SourceQuality "1"]
[TimeControl "40/5400+30:1800+30"]

1. e4 {[%emt 0:00:00]} c6 {[%emt 0:00:00]} 2. d4 {[%emt 0:00:00]} d5 {[%emt 0:00:00]} 3. exd5 {[%emt 0:00:00]} cxd5 {[%emt 0:00:00]} 4. Bd3 {[%emt 0:00:00]} Nc6 {[%emt 0:00:00]} 5. c3 {[%emt 0:00:00]} Nf6 {[%emt 0:00:00]} 6. Bf4 {[%emt 0:00:02]} Bg4 {[%emt 0:00:12]} 7. Qb3 {[%emt 0:00:06]} Qd7 {[%emt 0:00:07]} 8. Nd2 {[%emt 0:00:11]} e6 {[%emt 0:00:12]} 9. Ngf3 {[%emt 0:00:10]} Bxf3 {[%emt 0:01:26]} 10. Nxf3 {[%emt 0:00:07]} Nh5 {[%emt 0:07:15]} 11. Ne5 {[%emt 0:04:51]} Qc7 {[%emt 0:08:15]} 12. Be3 {[%emt 0:08:42]} Bd6 {[%emt 0:02:50]} 13. f4 {[%emt 0:14:02]} f6 {[%emt 0:10:49]} 14. Qd1 {[%emt 0:27:00]} Nxf4 {[%emt 0:04:26]} 15. Bxf4 {[%emt 0:00:07]} fxe5 {[%emt 0:00:36]} 16. dxe5 {[%emt 0:04:17]} Bxe5 {[%emt 0:09:22]} 17. Qh5+ {[%emt 0:10:36]} Qf7 {[%emt 0:00:45]} 18. Qxf7+ {[%emt 0:00:07]} Kxf7 {[%emt 0:00:04]} 19. Bd2 {[%emt 0:02:06]} Ke7 {[%emt 0:00:43]} 20. O-O {[%emt 0:01:39]} h6 {[%emt 0:02:28]} 21. Rfe1 {[%emt 0:05:10]} Rhf8 {[%emt 0:04:22]} 22. Re2 {[%emt 0:00:13]} Bf4 {[%emt 0:06:20]} 23. Be1 {[%emt 0:00:05]} Ne5 {[%emt 0:01:48]} 24. Bc2 {[%emt 0:05:12]} Ng4 {[%emt 0:02:54]} 25. g3 {[%emt 0:00:05]} Be3+ {[%emt 0:00:57]} 26. Kg2 {[%emt 0:00:59]} Bb6 {[%emt 0:03:54]} 27. Bd2 {[%emt 0:00:11]} Rf2+ {[%emt 0:11:06]} 28. Rxf2 {[%emt 0:00:07]} Nxf2 {[%emt 0:00:04]} 29. Re1 {[%emt 0:01:58]} Rf8 {[%emt 0:04:48]} 30. c4 {[%emt 0:00:48]} Nd3 {[%emt 0:03:50]} 31. Bxd3 {[%emt 0:02:54]} Rf2+ {[%emt 0:00:05]} 32. Kh3 {[%emt 0:00:05]} Rxd2 {[%emt 0:00:05]} 33. Bf5 {[%emt 0:02:16]} Kf6 {[%emt 0:00:53]} 34. Bg4 {[%emt 0:00:01]} e5 {[%emt 0:00:35]} 35. cxd5 {[%emt 0:00:33]} Rxd5 {[%emt 0:02:25]} 36. Re2 {[%emt 0:00:39]} Bd4 {[%emt 0:03:54]} 37. Bf3 {[%emt 0:00:23]} Rb5 {[%emt 0:00:28]} 38. b3 {[%emt 0:00:14]} b6 {[%emt 0:04:16]} 39. Be4 {[%emt 0:00:06]} Rc5 {[%emt 0:01:23]} 40. Re1 {[%emt 0:00:00]} Rc7 {[%emt 0:00:00]} 41. Rf1+ {[%emt 0:00:41]} Ke6 {[%emt 0:01:27]} 42. Kg4 {[%emt 0:00:14]} a5 {[%emt 0:07:08]} 43. Kh5 {[%emt 0:18:32]} Ra7 {[%emt 0:06:51]} 44. Kg6 {[%emt 0:06:03]} Rc7 {[%emt 0:00:48]} 45. g4 {[%emt 0:03:28]} Be3 {[%emt 0:01:49]} 46. h4 {[%emt 0:01:33]} Bd4 {[%emt 0:01:06]} 47. Rf3 {[%emt 0:02:04]} Ra7 {[%emt 0:02:05]} 48. g5 {[%emt 0:00:18]} hxg5 {[%emt 0:00:14]} 49. hxg5 {[%emt 0:00:01]} Bb2 {[%emt 0:04:07]} 50. Rf2 {[%emt 0:03:08]} Bd4 {[%emt 0:01:06]} 51. Rc2 {[%emt 0:00:26]} Bc5 {[%emt 0:00:57]} 52. Rc3 {[%emt 0:01:16]} Re7 {[%emt 0:01:30]} 53. Rf3 {[%emt 0:03:34]} Rc7 {[%emt 0:02:21]} 54. Kh7 {[%emt 0:01:53]} Be7 {[%emt 0:06:07]} 55. Rg3 {[%emt 0:01:52]} Bd8 {[%emt 0:00:35]} 56. Kg6 {[%emt 0:00:47]} Be7 {[%emt 0:02:48]} 57. Rd3 {[%emt 0:00:04]} Bb4 {[%emt 0:01:51]} 58. Bf5+ {[%emt 0:00:16]} Ke7 {[%emt 0:00:31]} 59. Kxg7 {[%emt 0:00:07]} Ke8+ {[%emt 0:01:07]} 60. Kg6 {[%emt 0:01:13]} Bf8 {[%emt 0:00:41]} 61. Be4 {[%emt 0:00:17]} Be7 {[%emt 0:00:57]} 62. Kf5 {[%emt 0:00:43]} Kf7 {[%emt 0:00:20]} 63. g6+ {[%emt 0:00:15]} Kg7 {[%emt 0:00:31]} 64. Rh3 {[%emt 0:00:06]} Rc1 {[%emt 0:00:33]} 65. Rh7+ {[%emt 0:01:25]} Kf8 {[%emt 0:00:19]} 66. Rf7+ {[%emt 0:00:05]} Ke8 {[%emt 0:00:24]} 67. Ke6 {[%emt 0:00:06]} Bf8 {[%emt 0:01:00]} 68. Rb7 {[%emt 0:00:43]} Rc8 {[%emt 0:00:34]} 69. g7 {[%emt 0:00:05]} Bxg7 {[%emt 0:00:04]} 70. Rxg7 {[%emt 0:00:04]} Kf8 {[%emt 0:00:23]} 71. Rb7 {[%emt 0:00:04]} Re8+ {[%emt 0:00:25]} 72. Kf6 {[%emt 0:00:05]} a4 {[%emt 0:00:53]} 73. Rxb6 {[%emt 0:00:27]} axb3 {[%emt 0:00:07]} 74. Rxb3 {[%emt 0:00:05]} Rc8 {[%emt 0:00:23]} 75. a4 {[%emt 0:00:13]} Ke8 {[%emt 0:00:11]} 76. a5 {[%emt 0:01:02]} Rc7 {[%emt 0:01:20]} 77. a6 {[%emt 0:00:45]} Ra7 {[%emt 0:00:15]} 78. Rb8+ {[%emt 0:00:20]} Kd7 {[%emt 0:00:11]} 79. Rb7+ {[%emt 0:00:04]} Rxb7 {[%emt 0:00:03]} 80. axb7 {[%emt 0:00:04]} Kc7 {[%emt 0:00:06]} 81. Kxe5 {[%emt 0:00:20]} Kb8 {[%emt 0:00:14]} 82. Kd6 {[%emt 0:00:08]} Ka7 {[%emt 0:00:06]} 83. Kc7 {[%emt 0:00:13]} Ka6 {[%emt 0:00:05]} 84. b8=Q {[%emt 0:00:14]} 1-0